bitfinex-derivatives/quotes_SOLF0:USTF0_20250202
["timestamp","ask_amount","ask_price","bid_price","bid_amount"]
[1738529504691,6.3551,203.31,203.17,40.73896258]
[1738529505189,6.70718013,203.29,203.17,40.73896258]
[1738529505493,0.03489225,203.25,203.21,0.03404235]
[1738529506695,0.03489225,203.25,203.23,4.9216]
[1738529506891,6.70718013,203.29,203.21,40.77300493]
[1738529507095,2.2564,203.36,203.21,40.77300493]
[1738529507289,4.9194,203.33,203.21,40.73896258]
[1738529507692,2.2564,203.36,203.18,2.2456]
[1738529507693,4.9184,203.37,203.29,4.9202]
[1738529507892,6.70718013,203.43,203.29,40.73896258]
[1738529507893,2.2564,203.42,203.29,40.73896258]
[1738529508092,0.03111337,203.35,203.31,0.03630661]
[1738529508291,6.70718013,203.43,203.35,4.9188]
[1738529508587,6.70718013,203.43,203.33,40.73896258]
[1738529509497,0.03540236,203.4,203.36,0.03551971]
[1738529510391,4.95300236,203.4,203.36,0.03551971]
[1738529510587,0.03540236,203.4,203.36,0.03551971]
[1738529511492,4.9183,203.38,203.36,0.03551971]
[1738529511795,4.9183,203.38,203.36,1.971e-05]
[1738529511998,6.2671,203.39,203.2,40.73896258]
[1738529512494,6.2671,203.39,203.24,40.73896258]
[1738529512700,6.2671,203.39,203.2,40.73896258]
[1738529513199,0.03250042,203.33,203.28,0.03485106]
[1738529513397,0.03250042,203.33,203.28,40.77381364]
[1738529513594,0.03250042,203.33,203.3,4.9199]
[1738529513794,0.03250042,203.33,203.28,40.77381364]
[1738529514199,0.03250042,203.33,203.29,4.9201]
[1738529515298,4.9196,203.32,203.28,0.03485106]
[1738529515498,0.03250042,203.33,203.28,0.03485106]
[1738529515792,40.771463,203.33,203.28,5.106e-05]
[1738529516011,40.73896258,203.29,203.28,5.106e-05]
[1738529516199,40.73896258,203.29,203.13,2.0947]
[1738529516394,40.73896258,203.25,203.07,4.5497]
[1738529516696,2.1654,203.24,203.07,4.5497]
[1738529517001,4.9227,203.19,203.08,4.9253]
[1738529517202,2.1654,203.24,203.08,4.9253]
[1738529517393,0.03459969,203.16,203.11,0.03603962]
[1738529517594,0.03459969,203.16,203.08,4.9253]
[1738529517898,0.03459969,203.16,203.11,0.03488218]
[1738529518129,4.9243,203.13,203.11,0.03488218]
[1738529518492,0.03459969,203.16,203.11,0.03488218]
[1738529519702,4.9243,203.13,203.11,0.03488218]
[1738529520701,0.03459969,203.16,202.98,4.5311]
[1738529521001,40.73896258,203.13,202.98,2.2629]
[1738529521198,4.9268,203.02,202.98,2.2629]
[1738529521398,4.16,203.1,202.96,4.9281]
[1738529521603,4.16,203.1,202.88,2.145]
[1738529521604,4.16,203.1,202.95,40.73896258]
[1738529521902,0.03348358,203.05,203.01,0.03725924]
[1738529522102,0.03348358,203.05,203.01,4.96425924]
[1738529522403,0.03348358,203.05,203.01,0.03725924]
[1738529524002,4.9266,203.03,203.01,0.03725924]
[1738529524400,0.03348358,203.05,203.01,0.03725924]
[1738529524603,4.9267,203.03,203.01,0.03725924]
[1738529524902,0.03348358,203.05,203.01,0.03725924]
[1738529525105,0.03348358,203.05,203.03,4.9264]
[1738529525402,6.2981,203.16,203.02,40.73896258]
[1738529525605,4.9261,203.05,203.02,2.1597]
[1738529525804,40.73896258,203.13,202.94,2.2679]
[1738529526099,4.9272,203.01,202.94,9.3561]
[1738529526309,40.73896258,203.09,202.86,40.73896258]
[1738529526501,0.03779318,203.0,202.95,0.03717451]
[1738529526714,0.03779318,203.0,202.95,4.96557451]
[1738529526900,0.03779318,203.0,202.9,40.73896258]
[1738529527099,0.03779318,203.0,202.95,0.03492636]
[1738529528302,0.03779318,203.0,202.95,4.96332636]
[1738529528609,0.03779318,203.0,202.95,0.03492636]
[1738529533306,0.03779318,203.0,202.95,4.96342636]
[1738529533515,0.03779318,203.0,202.95,0.03492636]
[1738529534912,0.03779318,203.0,202.97,4.9279]
[1738529535108,0.03779318,203.0,202.95,0.03492636]
[1738529535508,97.54,203.2,202.95,0.03492636]
[1738529535509,4.9246,203.12,202.97,40.73896258]
[1738529535713,2.2557,203.15,203.05,40.73896258]
[1738529536226,2.2557,203.15,203.01,40.73896258]
[1738529536713,2.2557,203.15,202.99,4.3213]
[1738529536912,0.03504787,203.1,203.06,0.0330307]
[1738529537110,4.9256,203.07,203.06,0.0330307]
[1738529537310,4.16,203.09,202.95,40.73896258]
[1738529538418,4.95979888,203.04,203.0,0.03594445]
[1738529538615,0.03339888,203.04,203.0,0.03594445]
[1738529539523,0.03339888,203.04,203.01,4.927]
[1738529539722,0.03339888,203.04,203.0,0.03594445]
[1738529539924,2.2557,203.15,203.03,40.73896258]
[1738529540622,2.2557,203.15,202.96,2.2077]
[1738529540823,42.99466258,203.15,202.96,2.2077]
[1738529541029,40.73896258,203.11,202.96,2.2077]
[1738529541229,40.73896258,203.11,203.03,0.03710819]
[1738529541230,0.03647965,203.08,203.03,0.03710819]
[1738529542926,40.73896258,203.07,202.87,40.73896258]
[1738529543123,40.73896258,202.99,202.8,4.5955]
[1738529543329,40.73896258,202.95,202.78,2.193]
[1738529543529,40.73896258,202.91,202.73,40.73896258]
[1738529544220,40.73896258,202.95,202.8,0.03132679]
[1738529544221,0.03500064,202.84,202.8,0.03132679]
[1738529544420,4.16,202.85,202.8,0.03132679]
[1738529544623,4.16,202.85,202.8,0.03344208]
[1738529544825,0.03367084,202.84,202.68,6.7885]
[1738529545026,4.9332,202.76,202.68,6.7885]
[1738529545322,40.73896258,202.75,202.58,81.2211133]
[1738529545626,40.73896258,202.79,202.58,81.2211133]
[1738529545825,40.73896258,202.79,202.6,40.73896258]
[1738529546125,0.03374512,202.71,202.66,0.03128992]
[1738529546324,4.96824512,202.71,202.66,0.03128992]
[1738529546623,0.03374512,202.71,202.66,0.03488682]
[1738529547528,0.03374512,202.71,202.58,86.1585133]
[1738529547529,0.03374512,202.71,202.58,4.9374]
[1738529547727,4.9357,202.66,202.56,4.938]
[1738529547929,40.73896258,202.71,202.55,4.4094]
[1738529548326,4.9365,202.62,202.55,2.3135]
[1738529548632,40.73896258,202.71,202.55,2.3135]
[1738529548828,0.03524589,202.61,202.59,4.9373]
[1738529549031,0.03524589,202.61,202.55,2.3135]
[1738529549224,40.73896258,202.71,202.55,2.3135]
[1738529549531,0.03588765,202.6,202.58,0.03601419]
[1738529549823,0.03272392,202.61,202.55,2.3135]
[1738529550029,0.03272392,202.61,202.57,0.03261967]
[1738529550428,0.03272392,202.61,202.55,2.3135]
[1738529551529,0.03272392,202.61,202.56,2.1785]
[1738529551731,4.16,202.7,202.56,2.21161957]
[1738529552031,4.16,202.7,202.56,2.1785]
[1738529552224,4.16,202.7,202.6,4.937]
[1738529552423,4.16,202.7,202.56,2.1785]
[1738529552628,4.9345,202.71,202.56,2.1785]
[1738529552829,4.9342,202.72,202.64,4.936]
[1738529553025,0.03731952,202.66,202.64,4.936]
[1738529553434,4.9342,202.72,202.63,0.03693677]
[1738529553732,0.03379535,202.67,202.63,0.03693677]
[1738529554230,0.03379535,202.67,202.65,4.9358]
[1738529554535,4.16,202.77,202.63,0.03693677]
[1738529554737,4.16,202.77,202.59,40.73896258]
[1738529554931,4.9334,202.75,202.68,4.935]
[1738529555427,6.70718013,202.78,202.69,4.9348]
[1738529555627,6.70718013,202.78,202.63,40.73896258]
[1738529555826,0.03318813,202.76,202.71,0.03298955]
[1738529556727,0.03318813,202.76,202.72,4.9341]
[1738529557436,0.03318813,202.76,202.73,4.9338]
[1738529557732,0.03318813,202.76,202.71,0.03298955]
[1738529558033,8.813e-05,202.76,202.75,4.9334]
[1738529558572,20.08546767,202.85,202.74,40.73896258]
[1738529558740,20.08546767,202.85,202.72,2.1862]
[1738529558741,12.36676767,202.85,202.78,40.73896258]
[1738529558939,8.88596767,202.85,202.78,40.73896258]
[1738529559140,8.88596767,202.85,202.84,4.9312]
[1738529559528,45.96824107,202.87,202.86,4.9307]
[1738529559842,68.61576221,202.9,202.86,40.73896258]
[1738529560032,9.06082772,202.92,202.91,4.9295]
[1738529560232,52.60674704,203.0,202.89,40.73896258]
[1738529560434,149.56873795,202.95,202.94,40.73896258]
[1738529560635,149.56873795,202.95,202.94,45.66776258]
[1738529560832,117.1232683,202.95,202.94,45.66776258]
[1738529561040,43.26676168,202.95,202.94,45.66776258]
[1738529561236,35.87656168,202.95,202.94,45.66776258]
[1738529561535,0.0377816,202.97,202.96,4.9283]
[1738529562139,0.0377816,202.97,202.94,45.66766258]
[1738529562337,8.16e-05,202.97,202.95,40.73896258]
[1738529562540,4.472,203.22,202.95,40.73896258]
[1738529562737,40.73896258,203.18,202.98,40.73896258]
[1738529563240,4.9252,203.09,202.98,40.73896258]
[1738529563440,40.73896258,203.18,203.06,169.2106527]
[1738529563962,0.03458665,203.14,203.06,169.2106527]
[1738529564240,4.9246,203.11,203.1,2.595e-05]
[1738529564743,4.9242,203.13,203.1,2.595e-05]
[1738529564933,0.03458665,203.14,203.1,2.595e-05]
[1738529565135,0.03458665,203.14,203.1,40.73898853]
[1738529565335,0.03458665,203.14,203.1,45.66378853]
[1738529565736,0.03458665,203.14,203.1,40.73898853]
[1738529565939,6.6266,203.31,203.15,40.73896258]
[1738529565940,4.9213,203.25,203.15,40.73896258]
[1738529566154,6.6266,203.31,203.12,53.55872632]
[1738529566435,4.9218,203.23,203.15,40.73896258]
[1738529566634,6.6266,203.31,203.21,53.55872632]
[1738529567039,4.9216,203.24,203.21,53.55872632]
[1738529567241,0.03556969,203.28,203.22,16.64226873]
[1738529567842,4.9218,203.23,203.22,16.64226873]
[1738529568537,6.6266,203.31,203.22,16.64226873]
[1738529569041,6.6266,203.31,203.18,78.13604576]
[1738529569843,0.03670201,203.27,203.22,0.03542101]
[1738529570342,4.9217,203.23,203.22,0.03542101]
[1738529570741,0.03670201,203.27,203.22,0.03542101]
[1738529571348,4.921,203.26,203.22,0.03542101]
[1738529571738,0.03670201,203.27,203.22,0.03542101]
[1738529572040,4.95750201,203.27,203.22,0.03542101]
[1738529572341,0.03670201,203.27,203.22,0.03542101]
[1738529572540,4.9217,203.23,203.22,0.03542101]
[1738529572741,47.15746258,203.26,203.17,53.55872632]
[1738529573038,47.15746258,203.26,203.15,81.80364676]
[1738529573039,40.73896258,203.18,203.15,81.80364676]
[1738529573339,4.9234,203.16,203.15,29.33747308]
[1738529573642,40.73896258,203.18,203.08,133.89681581]
[1738529573842,4.9232,203.17,203.08,133.89681581]
[1738529574042,0.03369456,203.18,203.13,0.03370042]
[1738529574339,4.95679456,203.18,203.13,0.03370042]
[1738529575241,0.03369456,203.18,203.13,0.03370042]
[1738529577745,44.89896258,203.3,203.14,40.73896258]
[1738529578044,4.9203,203.29,203.19,4.9226]
[1738529578251,4.16,203.3,203.15,5.4878]
[1738529578252,44.89896258,203.3,203.15,5.4878]
[1738529579046,0.03176363,203.25,203.2,0.03220544]
[1738529579745,4.9222,203.21,203.2,0.03220544]
[1738529580141,40.73896258,203.22,203.07,2.6207]
[1738529580348,40.73896258,203.18,203.07,2.6207]
[1738529581145,44.89896258,203.18,203.02,2.819]
[1738529581545,4.9244,203.13,203.1,0.03448205]
[1738529582038,0.03264758,203.15,203.1,4.95928205]
[1738529582345,40.73896258,203.13,203.1,0.03448205]
[1738529582549,40.73896258,203.13,203.02,2.819]
[1738529582740,40.73896258,203.09,202.99,2.6207]
[1738529583646,40.73896258,203.09,202.91,5.5175]
[1738529583846,0.03411158,203.06,203.02,0.03727637]
[1738529585740,4.9264,203.04,203.02,0.03727637]
[1738529586838,4.9266,203.03,203.02,0.03727637]
[1738529587244,40.73896258,203.05,202.92,2.8332]
[1738529587540,40.73896258,202.97,202.77,40.73896258]
[1738529587746,40.73896258,202.93,202.85,4.9309]
[1738529587946,40.73896258,202.93,202.78,5.6009]
[1738529588342,40.73896258,203.01,202.81,40.73896258]
[1738529588537,4.16,203.03,202.85,40.73896258]
[1738529588744,40.73896258,202.93,202.78,5.6009]
[1738529588943,4.16,203.03,202.78,2.8155]
[1738529588944,4.9308,202.86,202.78,2.8155]
[1738529589149,4.16,202.88,202.78,2.8155]
[1738529589849,0.03745803,202.85,202.81,0.03162426]
[1738529590150,4.9312,202.84,202.81,0.03162426]
[1738529590447,0.03745803,202.85,202.81,0.03162426]
[1738529590640,0.03745803,202.85,202.72,2.7178]
[1738529590641,40.77642061,202.85,202.72,2.7178]
[1738529591046,40.73896258,202.85,202.72,2.7178]
[1738529591449,4.9326,202.78,202.72,2.7178]
[1738529592050,0.03517925,202.77,202.73,0.03339781]
[1738529592349,4.96807925,202.77,202.73,0.03339781]
[1738529592845,4.9335,202.75,202.73,0.03339781]
[1738529593250,4.9335,202.75,202.62,2.7872]
[1738529593251,4.16,202.75,202.62,8.0734]
[1738529593451,4.9347,202.7,202.62,8.0734]
[1738529593649,4.16,202.75,202.62,8.0734]
[1738529594350,44.89896258,202.8,202.62,8.0734]
[1738529594653,0.03659405,202.71,202.66,0.03327465]
[1738529595055,0.03659405,202.71,202.62,5.2862]
[1738529595252,4.9347,202.7,202.66,0.0352298]
[1738529595451,0.03659405,202.71,202.66,0.0352298]
[1738529598753,0.03659405,202.71,202.69,4.9348]
[1738529598953,0.03659405,202.71,202.66,0.0352298]
[1738529599452,0.03659405,202.71,202.69,4.9348]
[1738529600046,0.03659405,202.71,202.66,0.0352298]
[1738529600750,4.9353,202.67,202.66,0.0352298]
[1738529600953,0.03659405,202.71,202.66,0.0352298]
[1738529601551,0.03659405,202.71,202.7,4.9346]
[1738529602756,4.9329,202.77,202.71,4.9342]
[1738529603059,49.53010382,203.08,202.67,5.6946]
[1738529603259,40.73896258,202.94,202.74,40.73896258]
[1738529603450,4.9305,202.87,202.75,3.3057]
[1738529603654,40.73896258,202.9,202.75,3.3057]
[1738529603959,4.9313,202.84,202.8,0.03240419]
[1738529604159,44.89896258,202.86,202.75,3.3057]
[1738529604389,40.73896258,202.82,202.8,0.03191895]
[1738529604557,40.73896258,202.82,202.67,5.6946]
[1738529604959,40.73896258,202.82,202.7,4.9345]
[1738529605156,4.9328,202.78,202.67,5.6946]
[1738529605356,40.73896258,202.82,202.67,5.6946]
[1738529605657,4.9331,202.76,202.72,0.03781658]
[1738529605863,0.03661695,202.77,202.72,0.03781658]
[1738529606362,4.9331,202.76,202.72,0.03781658]
[1738529607262,0.03661695,202.77,202.72,0.03781658]
[1738529607557,40.73896258,202.94,202.72,40.77677916]
[1738529607859,40.73896258,202.94,202.72,40.73896258]
[1738529608260,40.73896258,202.94,202.81,4.9318]
[1738529608456,4.9305,202.87,202.81,4.9318]
[1738529608655,0.03250734,202.9,202.85,0.03226424]
[1738529609161,0.03444067,202.9,202.85,0.03726576]
[1738529609361,4.96434067,202.9,202.85,0.03726576]
[1738529609661,0.03444067,202.9,202.85,0.03726576]
[1738529610456,0.03444067,202.9,202.86,4.9306]
[1738529610699,0.03444067,202.9,202.85,0.03726576]
[1738529611162,40.73896258,203.02,202.85,0.03726576]
[1738529611366,40.73896258,203.02,202.84,40.73896258]
[1738529611658,4.16,203.04,202.9,4.9297]
[1738529611858,4.928,202.98,202.84,40.73896258]
[1738529612261,0.03325269,202.93,202.89,0.03769274]
[1738529612465,40.73896258,203.02,202.84,40.73896258]
[1738529612657,0.03733239,202.93,202.89,0.0348891]
[1738529612853,40.73896258,203.02,202.85,3.2262]
[1738529613160,0.0372322,202.93,202.89,0.03252432]
[1738529613355,4.9285,202.95,202.89,4.93]
[1738529613561,0.03201967,202.93,202.89,0.03538555]
[1738529613880,4.16,203.05,202.88,40.73896258]
[1738529614058,4.16,203.05,202.89,3.12757267]
[1738529614363,0.03446852,202.99,202.95,0.03332539]
[1738529615157,4.9283,202.96,202.95,0.03332539]
[1738529616562,0.03446852,202.99,202.95,0.03332539]
[1738529616765,43.77616258,203.1,202.95,0.03332539]
[1738529617074,40.73896258,203.1,202.92,40.73896258]
[1738529617369,4.16,203.19,203.0,40.73896258]
[1738529617669,4.9239,203.15,203.09,4.925]
[1738529617873,40.73896258,203.18,203.01,6.5024]
[1738529618111,0.03437728,203.12,203.07,0.03145984]
[1738529618270,4.9226,203.2,203.07,0.03145984]
[1738529618462,4.16,203.26,203.07,0.03145984]
[1738529618665,7.873,203.27,203.08,40.73896258]
[1738529618865,3.1848,203.27,203.08,40.73896258]
[1738529619074,4.16,203.29,203.12,40.73896258]
[1738529619271,40.73896258,203.36,203.16,40.73896258]
[1738529619464,0.03795384,203.23,203.18,0.03643288]
[1738529619674,40.73896258,203.36,203.16,40.73896258]
[1738529619869,4.9194,203.33,203.23,4.9216]
[1738529620070,40.73896258,203.36,203.23,4.9216]
[1738529620473,4.9201,203.3,203.21,4.9221]
[1738529620669,40.73896258,203.36,203.16,40.73896258]
[1738529620876,40.77133974,203.28,203.24,0.03300206]
[1738529621073,4.9212,203.25,203.24,0.03300206]
[1738529621292,40.73896258,203.28,203.13,3.3338]
[1738529621467,4.9216,203.24,203.16,4.9233]
[1738529621662,40.73896258,203.32,203.15,40.73896258]
[1738529621870,4.16,203.35,203.15,40.73896258]
[1738529622069,4.9194,203.33,203.19,40.73896258]
[1738529622275,4.16,203.35,203.19,40.73896258]
[1738529622572,0.03310134,203.28,203.24,0.03636329]
[1738529622972,4.919,203.35,203.25,4.921]
[1738529623269,40.73896258,203.4,203.25,4.921]
[1738529623470,4.9193,203.33,203.25,3.0283]
[1738529624065,40.73896258,203.36,203.15,40.73896258]
[1738529624370,4.16,203.41,203.14,2.9841]
[1738529624371,0.03486459,203.31,203.27,8.307e-05]
[1738529624570,45.65946258,203.28,203.27,8.307e-05]
[1738529624871,0.03486459,203.31,203.16,3.0283]
[1738529624872,40.73896258,203.32,203.16,3.0283]
[1738529625072,40.73896258,203.32,203.19,4.9226]
[1738529625478,40.73896258,203.36,203.16,3.0283]
[1738529625674,4.95413996,203.28,203.23,0.03357343]
[1738529625865,0.03353996,203.28,203.23,0.03357343]
[1738529626069,0.03353996,203.28,203.18,40.73896258]
[1738529626572,0.03353996,203.28,203.23,0.03134039]
[1738529627773,4.921,203.26,203.23,0.03134039]
[1738529627973,0.03353996,203.28,203.23,0.03134039]
[1738529630875,0.03353996,203.28,203.25,4.9211]
[1738529631579,4.9199,203.31,203.23,0.03134039]
[1738529631580,40.73896258,203.39,203.23,0.03134039]
[1738529631878,40.73896258,203.39,203.22,40.73896258]
[1738529632077,4.9196,203.32,203.27,4.9206]
[1738529632377,4.9196,203.32,203.22,40.73896258]
[1738529632777,0.03379459,203.29,203.25,0.03286921]
[1738529633575,0.03379459,203.29,203.27,4.9207]
[1738529634174,0.03379459,203.29,203.25,0.03286921]
[1738529634880,40.73896258,203.27,203.14,2.9841]
[1738529635375,40.73896258,203.23,203.1,6.0932]
[1738529635976,0.03767029,203.19,203.14,0.03223359]
[1738529636479,4.9237,203.15,203.14,0.03223359]
[1738529637479,40.77663287,203.19,203.03,6.0932]
[1738529637679,40.73896258,203.15,203.03,6.0932]
[1738529637979,40.73896258,203.11,202.97,2.9799]
[1738529638178,4.9256,203.07,202.97,7.9078]
[1738529638371,40.73896258,203.11,202.97,2.9799]
[1738529638778,4.96176837,203.06,203.02,0.03131597]
[1738529639077,0.03586837,203.06,203.02,0.03131597]
[1738529640280,0.03586837,203.06,203.02,4.95811597]
[1738529640483,0.03586837,203.06,203.02,0.03131597]
[1738529640879,4.9265,203.04,203.02,0.03131597]
[1738529642284,0.03586837,203.06,202.87,40.73896258]
[1738529642583,40.73896258,203.0,202.86,2.973]
[1738529642783,44.87896258,203.0,202.86,2.973]
[1738529642979,40.73896258,202.96,202.76,79.63414549]
[1738529643185,40.73896258,203.04,202.91,4.9294]
[1738529643375,4.9268,203.03,202.88,40.73896258]
[1738529643576,40.73896258,203.08,202.89,6.0697]
[1738529643783,0.0322328,203.0,202.95,0.0374422]
[1738529643979,4.9281,202.97,202.95,0.0374422]
[1738529644176,40.77119538,203.0,202.8,40.73896258]
[1738529644502,4.9285,202.95,202.94,6.761e-05]
[1738529644684,44.87896258,202.96,202.81,3.0424]
[1738529645482,4.9294,202.92,202.81,3.0424]
[1738529645784,0.03769384,202.91,202.86,0.03317649]
[1738529646288,40.77665642,202.91,202.86,0.03317649]
[1738529646492,4.9315,202.83,202.72,3.0936]
[1738529646678,40.73896258,202.87,202.72,3.0936]
[1738529646879,40.73896258,202.87,202.74,4.9335]
[1738529647082,40.73896258,202.87,202.72,3.0936]
[1738529647589,0.03452448,202.82,202.77,0.03239433]
[1738529650689,0.03452448,202.82,202.8,4.932]
[1738529650986,0.03452448,202.82,202.77,0.03239433]
[1738529651184,4.9319,202.81,202.77,0.03239433]
[1738529651488,0.03452448,202.82,202.77,0.03239433]
[1738529651686,4.9324,202.79,202.77,0.03239433]
[1738529653287,0.03452448,202.82,202.77,0.03239433]
[1738529653592,40.77348706,202.82,202.77,0.03239433]
[1738529654092,40.73896258,202.78,202.55,138.27896258]
[1738529654389,4.16,202.77,202.56,9.3063]
[1738529655090,0.03117818,202.69,202.64,4.97333351]
[1738529655390,0.03117818,202.69,202.56,9.3063]
[1738529655589,0.03117818,202.69,202.64,4.97118252]
[1738529655789,4.16,202.77,202.64,0.03538252]
[1738529656102,0.03468787,202.69,202.59,40.73896258]
[1738529656287,0.03468787,202.69,202.68,0.03576737]
[1738529656490,40.73896258,202.87,202.64,40.73896258]
[1738529656793,4.9302,202.89,202.72,40.73896258]
[1738529657091,1.594,202.93,202.73,6.3746]
[1738529657092,40.73896258,202.91,202.73,6.3746]
[1738529657492,4.9311,202.85,202.73,6.3746]
[1738529657790,0.03232564,202.84,202.8,0.03386817]
[1738529658685,0.03232564,202.84,202.8,4.96596817]
[1738529658887,0.03232564,202.84,202.8,0.03386817]
[1738529660489,4.9317,202.82,202.8,0.03386817]
[1738529660890,0.03232564,202.84,202.8,0.03386817]
[1738529661293,0.03232564,202.84,202.73,3.2482]
[1738529661791,4.9326,202.79,202.73,3.2482]
[1738529662198,40.73896258,202.87,202.73,3.2482]
[1738529662594,4.9321,202.81,202.78,0.03323694]
[1738529663089,0.03480631,202.82,202.78,0.03323694]
[1738529664395,0.03480631,202.82,202.64,2.8031]
[1738529664801,40.73896258,202.83,202.64,2.8031]
[1738529664995,40.73896258,202.87,202.66,40.73896258]
[1738529665195,4.16,202.89,202.7,40.73896258]
[1738529665400,40.73896258,202.87,202.66,40.73896258]
[1738529665596,4.932,202.81,202.77,0.03185981]
[1738529665898,0.03196779,202.82,202.77,0.03185981]
[1738529666198,4.9324,202.8,202.77,0.03185981]
[1738529666492,0.03196779,202.82,202.77,0.03185981]
[1738529666900,0.03196779,202.82,202.78,4.9326]
[1738529667096,0.03196779,202.82,202.77,0.03185981]
[1738529667297,0.03196779,202.82,202.8,4.932]
[1738529667497,0.03196779,202.82,202.77,0.03185981]
[1738529667995,0.03196779,202.82,202.81,4.9319]
[1738529668896,3.1921,202.94,202.78,40.73896258]
[1738529669102,40.73896258,203.03,202.82,40.73896258]
[1738529669300,4.16,203.02,202.82,40.73896258]
[1738529669501,40.73896258,202.99,202.86,4.9306]
[1738529669696,40.73896258,202.99,202.78,40.73896258]
[1738529670203,0.03397767,202.91,202.86,0.03587522]
[1738529670501,0.03397767,202.91,202.78,40.73896258]
[1738529670701,40.73896258,202.99,202.86,0.03521318]
[1738529670904,0.03133977,202.87,202.78,40.73896258]
[1738529671104,4.9292,202.93,202.9,0.0334331]
[1738529671402,40.73896258,202.99,202.78,40.73896258]
[1738529671602,0.03614089,202.94,202.89,0.03778958]
[1738529672202,4.9297,202.9,202.89,8.958e-05]
[1738529673802,9.0897,202.9,202.89,8.958e-05]
[1738529674133,4.16,202.9,202.76,2.792]
[1738529674302,4.9324,202.8,202.76,2.792]
[1738529674499,40.73896258,202.87,202.7,2.7991]
[1738529674804,40.73896258,202.87,202.71,4.9342]
[1738529675001,40.73896258,202.87,202.7,2.7991]
[1738529675406,0.03326214,202.81,202.76,0.03478801]
[1738529675607,4.9324,202.79,202.76,0.03478801]
[1738529675797,0.03326214,202.81,202.76,0.03478801]
[1738529676105,4.9324,202.79,202.76,0.03478801]
[1738529676304,0.03326214,202.81,202.76,0.03478801]
[1738529676805,4.9329,202.77,202.76,0.03478801]
[1738529678907,4.9322,202.8,202.76,0.03478801]
[1738529679108,0.03326214,202.81,202.76,0.03478801]
[1738529679606,4.9323,202.8,202.76,0.03478801]
[1738529680113,0.03326214,202.81,202.76,0.03478801]
[1738529681102,4.9302,202.89,202.83,4.9313]
[1738529682004,4.9293,202.92,202.86,4.9305]
[1738529682210,0.03750994,202.88,202.84,0.03208835]
[1738529683200,40.73896258,202.87,202.84,0.03208835]
[1738529683399,4.9309,202.85,202.84,0.03208835]
[1738529683704,0.03750994,202.88,202.69,43.37746258]
[1738529683902,40.73896258,202.91,202.76,4.9331]
[1738529684710,4.932,202.81,202.74,4.9335]
[1738529685102,4.932,202.81,202.75,0.03151687]
[1738529685304,0.0339094,202.8,202.75,0.03151687]
[1738529685513,0.0339094,202.8,202.75,4.96461687]
[1738529685707,0.0339094,202.8,202.75,0.03151687]
[1738529686011,0.0339094,202.8,202.78,4.9325]
[1738529686407,40.73896258,202.95,202.75,0.03151687]
[1738529686607,44.87896258,202.95,202.84,4.9311]
[1738529686835,44.87896258,202.95,202.77,40.73896258]
[1738529687310,4.93,202.89,202.83,4.9312]
[1738529687508,0.03122262,202.88,202.77,40.73896258]
[1738529687810,4.9309,202.85,202.84,0.0364144]
[1738529688013,44.87896258,202.95,202.78,4.9326]
[1738529688305,0.03737179,202.84,202.79,0.03686306]
[1738529688511,0.03470434,202.84,202.79,0.03582198]
[1738529689109,0.03470434,202.84,202.83,4.9314]
[1738529689313,0.03470434,202.84,202.8,3.0381]
[1738529690716,0.03470434,202.84,202.8,7.9702]
[1738529691415,4.96600434,202.84,202.8,7.9702]
[1738529692921,0.03470434,202.84,202.8,3.0381]
[1738529693312,0.03470434,202.84,202.8,6.1835]
[1738529693820,0.03470434,202.84,202.83,4.9314]
[1738529696322,25.21005377,202.94,202.8,6.1835]
[1738529696525,4.9274,203.0,202.94,4.9286]
[1738529696827,61.30938335,203.08,202.9,3.1865]
[1738529697131,25.21005377,203.05,202.9,3.1865]
[1738529697349,25.21005377,203.01,202.84,25.21005377]
[1738529697525,0.03639544,203.0,202.95,0.03186067]
[1738529697833,25.21005377,203.05,202.84,25.21005377]
[1738529698020,0.03624555,203.0,202.95,0.03767676]
[1738529698624,4.9283,202.96,202.95,0.03767676]
[1738529698829,4.9283,202.96,202.95,7.676e-05]
[1738529700735,4.9307,202.86,202.81,3.1837]
[1738529700935,25.21005377,202.94,202.83,4.9313]
[1738529701132,4.9297,202.91,202.81,3.1837]
[1738529701433,6.0554,202.97,202.81,3.1837]
[1738529701633,2.9512,202.97,202.81,3.1837]
[1738529701827,0.03361974,202.91,202.87,0.03359405]
[1738529703436,4.9302,202.88,202.87,0.03359405]
[1738529704533,25.21005377,202.9,202.72,25.21005377]
[1738529704776,25.21005377,202.9,202.7,3.0233]
[1738529704777,25.21005377,202.9,202.7,9.2446]
[1738529705337,25.21005377,202.9,202.72,25.21005377]